[Event "*** Titled Tuesday Blitz"]
[Site "Chess.com"]
[Date "2020.05.19"]
[Round "8"]
[White "Zubrrr"]
[Black "mbachez"]
[Result "0-1"]
[WhiteElo "2645"]
[BlackElo "2502"]
[TimeControl "180+1"]
[EndTime "13:37:24 PDT"]
[Termination "mbachez won on time"]

1. c4 {[%clk 0:03:00.9]} 1... e5 {[%clk 0:02:45.3]} 2. g3 {[%clk 0:03:01.1]}
2... Nf6 {[%clk 0:02:39.7]} 3. Bg2 {[%clk 0:02:59.9]} 3... Bc5 {[%clk
0:02:38.8]} 4. Nc3 {[%clk 0:02:59.5]} 4... O-O {[%clk 0:02:38.7]} 5. Nf3 {[%clk
0:02:59.1]} 5... e4 {[%clk 0:02:36.7]} 6. Ng5 {[%clk 0:02:46.4]} 6... Bxf2+
{[%clk 0:02:36.4]} 7. Kxf2 {[%clk 0:02:47.3]} 7... Ng4+ {[%clk 0:02:36.6]} 8.
Kg1 {[%clk 0:02:47.5]} 8... Qxg5 {[%clk 0:02:32]} 9. Nxe4 {[%clk 0:02:47.7]}
9... Qe7 {[%clk 0:02:28.3]} 10. h3 {[%clk 0:02:28]} 10... f5 {[%clk 0:02:08.6]}
11. Nc3 {[%clk 0:02:27.9]} 11... Nf6 {[%clk 0:02:03.2]} 12. d4 {[%clk
0:02:24.4]} 12... Nc6 {[%clk 0:02:00.8]} 13. Bf4 {[%clk 0:02:18.5]} 13... d6
{[%clk 0:01:59.1]} 14. Qd2 {[%clk 0:02:05.2]} 14... Bd7 {[%clk 0:01:57.1]} 15.
Kh2 {[%clk 0:02:00.2]} 15... Rae8 {[%clk 0:01:55.5]} 16. Rhf1 {[%clk 0:01:47.3]}
16... Qf7 {[%clk 0:01:53.8]} 17. Bg5 {[%clk 0:01:30.5]} 17... Kh8 {[%clk
0:01:38.4]} 18. Bxf6 {[%clk 0:01:16.9]} 18... Qxf6 {[%clk 0:01:38.4]} 19. e3
{[%clk 0:01:17.2]} 19... Qh6 {[%clk 0:01:38.6]} 20. Rae1 {[%clk 0:01:13.4]}
20... Bc8 {[%clk 0:01:35.3]} 21. Nd5 {[%clk 0:01:11]} 21... Rf7 {[%clk
0:01:35.5]} 22. Qf2 {[%clk 0:01:05.3]} 22... Ref8 {[%clk 0:01:33.9]} 23. e4
{[%clk 0:01:00.5]} 23... Kg8 {[%clk 0:01:21.3]} 24. e5 {[%clk 0:00:58.6]} 24...
dxe5 {[%clk 0:01:19.6]} 25. dxe5 {[%clk 0:00:59.5]} 25... Nd8 {[%clk 0:01:11.3]}
26. Qxa7 {[%clk 0:00:52]} 26... c6 {[%clk 0:01:06.9]} 27. Nc3 {[%clk 0:00:31.5]}
27... Ne6 {[%clk 0:01:03.7]} 28. Qe3 {[%clk 0:00:18.4]} 28... f4 {[%clk
0:01:03.8]} 29. gxf4 {[%clk 0:00:18.7]} 29... Nxf4 {[%clk 0:00:59.9]} 30. Qg3
{[%clk 0:00:05.4]} 30... Be6 {[%clk 0:00:57.8]} 31. b3 {[%clk 0:00:03.9]} 31...
Nh5 {[%clk 0:00:57.6]} 32. Qd3 {[%clk 0:00:02.3]} 32... Qg5 {[%clk 0:00:56]} 33.
Rxf7 {[%clk 0:00:01.8]} 33... Rxf7 {[%clk 0:00:54.1]} 34. Ne4 {[%clk 0:00:02.4]}
34... Qxe5+ {[%clk 0:00:53.6]} 35. Kg1 {[%clk 0:00:02.5]} 35... Rd7 {[%clk
0:00:53.1]} 36. Qe3 {[%clk 0:00:02]} 36... Nf4 {[%clk 0:00:51.2]} 37. Nf2 {[%clk
0:00:02.2]} 37... Qg5 {[%clk 0:00:39.4]} 38. Ng4 {[%clk 0:00:01.6]} 38... Rd8
{[%clk 0:00:33.8]} 39. Qe5 {[%clk 0:00:01.6]} 39... h6 {[%clk 0:00:27.5]} 40.
Qxg5 {[%clk 0:00:01.2]} 40... hxg5 {[%clk 0:00:27.5]} 41. Ne3 {[%clk 0:00:01.6]}
41... Rd2 {[%clk 0:00:26.7]} 42. Bf1 {[%clk 0:00:01.7]} 42... Rxa2 {[%clk
0:00:26.3]} 43. Rd1 {[%clk 0:00:02.2]} 43... Bxh3 {[%clk 0:00:25.9]} 44. Bxh3
{[%clk 0:00:01.9]} 44... Nxh3+ {[%clk 0:00:25.5]} 45. Kf1 {[%clk 0:00:02.8]}
45... Rf2+ {[%clk 0:00:24.6]} 46. Ke1 {[%clk 0:00:02.9]} 46... Rf3 {[%clk
0:00:24.9]} 47. Ke2 {[%clk 0:00:03.4]} 47... Rf2+ {[%clk 0:00:24.9]} 48. Ke1
{[%clk 0:00:03.1]} 48... Rh2 {[%clk 0:00:25.1]} 49. Rd8+ {[%clk 0:00:02.6]}
49... Kf7 {[%clk 0:00:24.5]} 50. Rd7+ {[%clk 0:00:03.5]} 50... Ke6 {[%clk
0:00:24]} 51. Rxb7 {[%clk 0:00:02.9]} 51... Nf4 {[%clk 0:00:24.2]} 52. Rxg7
{[%clk 0:00:02.2]} 52... Re2+ {[%clk 0:00:23.5]} 53. Kd1 {[%clk 0:00:02.7]}
53... Rxe3 {[%clk 0:00:23.6]} 54. Rxg5 {[%clk 0:00:02.5]} 54... Rxb3 {[%clk
0:00:23.5]} 55. Kc2 {[%clk 0:00:03.4]} 55... Rf3 {[%clk 0:00:19.7]} 56. Ra5
{[%clk 0:00:02.4]} 56... Kd6 {[%clk 0:00:19.5]} 0-1

[Event "*** Titled Tuesday Blitz"]
[Site "Chess.com"]
[Date "2020.05.19"]
[Round "8"]
[White "Kolle05"]
[Black "Bastiandash"]
[Result "1-0"]
[WhiteElo "2394"]
[BlackElo "2199"]
[TimeControl "180+1"]
[EndTime "13:37:25 PDT"]
[Termination "Kolle05 won by resignation"]

1. e4 {[%clk 0:03:00.9]} 1... c5 {[%clk 0:02:58.1]} 2. Nf3 {[%clk 0:03:00.7]}
2... e6 {[%clk 0:02:57.6]} 3. d3 {[%clk 0:03:00.1]} 3... a6 {[%clk 0:02:50]} 4.
g3 {[%clk 0:03:00.2]} 4... b5 {[%clk 0:02:50]} 5. Bg2 {[%clk 0:03:00.4]} 5...
Bb7 {[%clk 0:02:50.5]} 6. O-O {[%clk 0:03:00.9]} 6... d6 {[%clk 0:02:40.8]} 7.
Re1 {[%clk 0:03:00.5]} 7... Nf6 {[%clk 0:02:40.3]} 8. c3 {[%clk 0:02:55.5]} 8...
Nbd7 {[%clk 0:02:36.8]} 9. a4 {[%clk 0:02:14.7]} 9... Be7 {[%clk 0:02:33.3]} 10.
Nbd2 {[%clk 0:02:14]} 10... O-O {[%clk 0:02:32.7]} 11. d4 {[%clk 0:02:13.8]}
11... cxd4 {[%clk 0:02:23.5]} 12. cxd4 {[%clk 0:02:14.7]} 12... e5 {[%clk
0:02:23]} 13. Qe2 {[%clk 0:02:01.3]} 13... Qb6 {[%clk 0:02:09.4]} 14. a5 {[%clk
0:01:52]} 14... Qc7 {[%clk 0:02:04.2]} 15. d5 {[%clk 0:01:47.7]} 15... Rac8
{[%clk 0:01:55.8]} 16. b4 {[%clk 0:01:42.4]} 16... Qc3 {[%clk 0:01:34]} 17. Rb1
{[%clk 0:01:39.9]} 17... Qc7 {[%clk 0:01:10.1]} 18. Bb2 {[%clk 0:01:37.1]} 18...
Qb8 {[%clk 0:01:09.8]} 19. Nb3 {[%clk 0:01:34.4]} 19... Rc7 {[%clk 0:01:08.8]}
20. Rbc1 {[%clk 0:01:32.7]} 20... Rfc8 {[%clk 0:01:08.9]} 21. Rxc7 {[%clk
0:01:32.4]} 21... Rxc7 {[%clk 0:01:09.5]} 22. Bh3 {[%clk 0:01:28.3]} 22... Qc8
{[%clk 0:01:03.5]} 23. Qd3 {[%clk 0:01:20.3]} 23... Rc2 {[%clk 0:00:56.9]} 24.
Rc1 {[%clk 0:01:19.3]} 24... Rc4 {[%clk 0:00:37.6]} 25. Nfd2 {[%clk 0:01:12.4]}
25... Rxc1+ {[%clk 0:00:31.8]} 26. Nxc1 {[%clk 0:01:08.4]} 26... Qc7 {[%clk
0:00:29.8]} 27. Ne2 {[%clk 0:01:06.6]} 27... Bc8 {[%clk 0:00:22.3]} 28. Qc3
{[%clk 0:01:01.3]} 28... Qxc3 {[%clk 0:00:14.9]} 29. Bxc3 {[%clk 0:01:02.2]}
29... Bb7 {[%clk 0:00:15.8]} 30. Nc1 {[%clk 0:01:01]} 30... Kf8 {[%clk
0:00:14.2]} 31. Nd3 {[%clk 0:01:00.9]} 31... Ke8 {[%clk 0:00:14.6]} 32. f4
{[%clk 0:01:00.8]} 32... exf4 {[%clk 0:00:10.3]} 33. gxf4 {[%clk 0:01:01.7]}
33... g6 {[%clk 0:00:07.7]} 34. Kf2 {[%clk 0:00:57.2]} 34... h5 {[%clk 0:00:06]}
35. Kf3 {[%clk 0:00:42.7]} 35... Kd8 {[%clk 0:00:05.5]} 36. Nb3 {[%clk
0:00:41.8]} 36... Nxd5 {[%clk 0:00:05.1]} 37. Bd4 {[%clk 0:00:25.6]} 37... N5f6
{[%clk 0:00:03.5]} 38. Nd2 {[%clk 0:00:24.8]} 38... d5 {[%clk 0:00:03.2]} 39. e5
{[%clk 0:00:23.3]} 39... Ne4 {[%clk 0:00:03.5]} 40. Ke3 {[%clk 0:00:20.1]} 40...
Nxd2 {[%clk 0:00:03.1]} 41. Kxd2 {[%clk 0:00:21]} 41... Nf8 {[%clk 0:00:03.3]}
42. Bb6+ {[%clk 0:00:19.7]} 42... Ke8 {[%clk 0:00:02.9]} 43. Bc5 {[%clk
0:00:19.6]} 43... Ne6 {[%clk 0:00:03.2]} 44. Bxe7 {[%clk 0:00:17.8]} 44... Kxe7
{[%clk 0:00:04.1]} 45. Bxe6 {[%clk 0:00:18.2]} 45... fxe6 {[%clk 0:00:03.1]} 46.
Nc5 {[%clk 0:00:19.1]} 46... Bc8 {[%clk 0:00:02.8]} 47. Ke3 {[%clk 0:00:19.3]}
47... Kf7 {[%clk 0:00:02.9]} 48. Kd4 {[%clk 0:00:19.1]} 48... Kg7 {[%clk
0:00:02.3]} 49. Nb3 {[%clk 0:00:16.7]} 49... Kh6 {[%clk 0:00:01.6]} 50. h4
{[%clk 0:00:16.7]} 50... g5 {[%clk 0:00:02.5]} 51. fxg5+ {[%clk 0:00:14.7]}
51... Kg6 {[%clk 0:00:03.4]} 52. Kc5 {[%clk 0:00:14.6]} 52... Kf5 {[%clk
0:00:04.1]} 53. Kd6 {[%clk 0:00:13.4]} 53... d4 {[%clk 0:00:04.1]} 54. Nxd4+
{[%clk 0:00:12.9]} 54... Kg6 {[%clk 0:00:04.4]} 55. Nxe6 {[%clk 0:00:11.9]} 1-0

[Event "*** Titled Tuesday Blitz"]
[Site "Chess.com"]
[Date "2020.05.19"]
[Round "8"]
[White "Msb2"]
[Black "AnthonyWirig"]
[Result "1-0"]
[WhiteElo "2896"]
[BlackElo "2666"]
[TimeControl "180+1"]
[EndTime "13:37:26 PDT"]
[Termination "Msb2 won by resignation"]

1. d4 {[%clk 0:03:00.9]} 1... Nf6 {[%clk 0:02:50.8]} 2. Nc3 {[%clk 0:03:00.5]}
2... d5 {[%clk 0:02:50.3]} 3. Bf4 {[%clk 0:03:01.2]} 3... a6 {[%clk 0:02:48.8]}
4. e3 {[%clk 0:03:01.2]} 4... c5 {[%clk 0:02:48.8]} 5. dxc5 {[%clk 0:02:59.3]}
5... e6 {[%clk 0:02:38.1]} 6. b4 {[%clk 0:02:54.8]} 6... Nc6 {[%clk 0:02:31.4]}
7. a3 {[%clk 0:02:53.8]} 7... Be7 {[%clk 0:02:21.7]} 8. Nf3 {[%clk 0:02:51.9]}
8... O-O {[%clk 0:02:21.9]} 9. Bd3 {[%clk 0:02:49.8]} 9... Nh5 {[%clk
0:02:07.9]} 10. Ne2 {[%clk 0:02:43.3]} 10... Nxf4 {[%clk 0:02:05.6]} 11. exf4
{[%clk 0:02:43.4]} 11... b6 {[%clk 0:02:00.9]} 12. cxb6 {[%clk 0:02:41.1]} 12...
Qxb6 {[%clk 0:02:01.8]} 13. O-O {[%clk 0:02:41]} 13... Bd7 {[%clk 0:01:53.5]}
14. c4 {[%clk 0:02:37]} 14... dxc4 {[%clk 0:01:53]} 15. Bxc4 {[%clk 0:02:34.4]}
15... Rfd8 {[%clk 0:01:53.1]} 16. Qb3 {[%clk 0:02:28.9]} 16... a5 {[%clk
0:01:49.1]} 17. b5 {[%clk 0:01:49.7]} 17... a4 {[%clk 0:01:47.8]} 18. Qa2 {[%clk
0:01:48]} 18... Na5 {[%clk 0:01:45.2]} 19. Rfb1 {[%clk 0:01:40.5]} 19... Bc5
{[%clk 0:01:34.6]} 20. Nc3 {[%clk 0:01:33.4]} 20... Nxc4 {[%clk 0:01:18.2]} 21.
Qxc4 {[%clk 0:01:34.3]} 21... Bxf2+ {[%clk 0:01:18.6]} 22. Kh1 {[%clk
0:01:33.5]} 22... Rdc8 {[%clk 0:01:03.1]} 23. Qd3 {[%clk 0:01:32.5]} 23... Be8
{[%clk 0:00:48.3]} 24. Ne4 {[%clk 0:01:25.3]} 24... h6 {[%clk 0:00:41.4]} 25.
Ra2 {[%clk 0:00:52]} 25... Rd8 {[%clk 0:00:37.9]} 26. Qe2 {[%clk 0:00:50.1]}
26... Be3 {[%clk 0:00:35.6]} 27. Ne5 {[%clk 0:00:18.1]} 27... Bxf4 {[%clk
0:00:31.1]} 28. Ng3 {[%clk 0:00:18.1]} 28... Bxe5 {[%clk 0:00:26.8]} 29. Qxe5
{[%clk 0:00:19]} 29... Rd5 {[%clk 0:00:26.5]} 30. Qf4 {[%clk 0:00:17.1]} 30...
Rxb5 {[%clk 0:00:17.7]} 31. Rf1 {[%clk 0:00:17]} 31... Rb2 {[%clk 0:00:13.1]}
32. Raa1 {[%clk 0:00:14.2]} 32... Rc8 {[%clk 0:00:09.1]} 33. Ne4 {[%clk
0:00:14.3]} 33... Qb7 {[%clk 0:00:06.5]} 34. Qg4 {[%clk 0:00:12.4]} 34... Kf8
{[%clk 0:00:06]} 35. Nd6 {[%clk 0:00:11.3]} 35... Qc6 {[%clk 0:00:04.5]} 36.
Nxc8 {[%clk 0:00:11.8]} 36... Qxc8 {[%clk 0:00:05.4]} 37. Qd4 {[%clk 0:00:11.5]}
37... Qb7 {[%clk 0:00:05.5]} 38. Rf2 {[%clk 0:00:09.4]} 38... Rb3 {[%clk
0:00:05]} 39. Kg1 {[%clk 0:00:07.8]} 39... Bc6 {[%clk 0:00:04.7]} 40. Re1 {[%clk
0:00:07.5]} 40... Bd5 {[%clk 0:00:04.7]} 41. Qxa4 {[%clk 0:00:05.2]} 41... Rb1
{[%clk 0:00:04]} 42. Rxb1 {[%clk 0:00:04.1]} 42... Qxb1+ {[%clk 0:00:04.9]} 43.
Rf1 {[%clk 0:00:05]} 43... Qb6+ {[%clk 0:00:05.5]} 44. Kh1 {[%clk 0:00:05.6]}
44... Qb7 {[%clk 0:00:06.1]} 45. Qb4+ {[%clk 0:00:05.9]} 45... Qxb4 {[%clk
0:00:06.5]} 46. axb4 {[%clk 0:00:06.8]} 46... Ke7 {[%clk 0:00:07.4]} 47. Rc1
{[%clk 0:00:06.8]} 47... Kd6 {[%clk 0:00:07.2]} 48. Kg1 {[%clk 0:00:07.4]} 48...
f5 {[%clk 0:00:07.6]} 49. g3 {[%clk 0:00:07.3]} 49... g5 {[%clk 0:00:08.5]} 50.
Kf2 {[%clk 0:00:07.4]} 50... h5 {[%clk 0:00:09.4]} 51. Rc8 {[%clk 0:00:07.4]}
51... e5 {[%clk 0:00:08.7]} 52. b5 {[%clk 0:00:07.7]} 52... f4 {[%clk
0:00:08.1]} 53. b6 {[%clk 0:00:08]} 53... Ke6 {[%clk 0:00:08]} 54. Rc7 {[%clk
0:00:07.2]} 54... e4 {[%clk 0:00:08.5]} 55. b7 {[%clk 0:00:07]} 55... e3+ {[%clk
0:00:09.4]} 56. Ke2 {[%clk 0:00:05.5]} 1-0

[Event "*** Titled Tuesday Blitz"]
[Site "Chess.com"]
[Date "2020.05.19"]
[Round "8"]
[White "Evgeny81"]
[Black "Titus369"]
[Result "1-0"]
[WhiteElo "2724"]
[BlackElo "2516"]
[TimeControl "180+1"]
[EndTime "13:37:27 PDT"]
[Termination "Evgeny81 won by resignation"]

1. e4 {[%clk 0:03:00.9]} 1... c5 {[%clk 0:02:57.6]} 2. Nf3 {[%clk 0:03:00.3]}
2... d6 {[%clk 0:02:57.7]} 3. d4 {[%clk 0:03:00.4]} 3... cxd4 {[%clk 0:02:58.6]}
4. Qxd4 {[%clk 0:03:00.6]} 4... a6 {[%clk 0:02:57.9]} 5. c4 {[%clk 0:02:58.9]}
5... Nc6 {[%clk 0:02:55.7]} 6. Qe3 {[%clk 0:02:58.8]} 6... g6 {[%clk 0:02:53.3]}
7. Nc3 {[%clk 0:02:58.2]} 7... Bg7 {[%clk 0:02:53.4]} 8. Be2 {[%clk 0:02:58.5]}
8... Nf6 {[%clk 0:02:51.7]} 9. h3 {[%clk 0:02:57.9]} 9... O-O {[%clk 0:02:52.2]}
10. O-O {[%clk 0:02:58.2]} 10... Bd7 {[%clk 0:02:36.8]} 11. Rd1 {[%clk
0:02:54.1]} 11... Rc8 {[%clk 0:02:33.9]} 12. Bd2 {[%clk 0:02:50.8]} 12... Qc7
{[%clk 0:02:03.7]} 13. b3 {[%clk 0:02:48.4]} 13... Qb8 {[%clk 0:02:02.4]} 14.
Rac1 {[%clk 0:02:47.4]} 14... Qa7 {[%clk 0:02:01.6]} 15. Qxa7 {[%clk 0:02:44.8]}
15... Nxa7 {[%clk 0:02:02.5]} 16. e5 {[%clk 0:02:32.1]} 16... dxe5 {[%clk
0:01:51.7]} 17. Nxe5 {[%clk 0:02:32.7]} 17... Be6 {[%clk 0:01:39.6]} 18. Bf3
{[%clk 0:02:28.8]} 18... Nc6 {[%clk 0:01:32.6]} 19. Nxc6 {[%clk 0:02:25.9]}
19... bxc6 {[%clk 0:01:33.5]} 20. Be3 {[%clk 0:02:20.7]} 20... Nd7 {[%clk
0:01:30]} 21. Na4 {[%clk 0:02:15.3]} 21... Rfd8 {[%clk 0:01:20.7]} 22. Nb6
{[%clk 0:02:03.9]} 22... Nxb6 {[%clk 0:01:18.3]} 23. Bxb6 {[%clk 0:02:04.5]}
23... Rd6 {[%clk 0:00:58.8]} 24. c5 {[%clk 0:01:48.4]} 24... Rxd1+ {[%clk
0:00:38.8]} 25. Rxd1 {[%clk 0:01:48.8]} 25... Bc3 {[%clk 0:00:39.4]} 26. Rd8+
{[%clk 0:01:37.6]} 26... Rxd8 {[%clk 0:00:24.8]} 27. Bxd8 {[%clk 0:01:38.2]}
27... Bb4 {[%clk 0:00:25.3]} 28. Bxe7 {[%clk 0:01:35.6]} 28... Bd7 {[%clk
0:00:23.9]} 29. Be2 {[%clk 0:01:12.4]} 29... a5 {[%clk 0:00:22.8]} 30. Bc4
{[%clk 0:01:11.7]} 30... Kg7 {[%clk 0:00:21.3]} 31. Kf1 {[%clk 0:01:09.9]} 31...
Bf5 {[%clk 0:00:13.6]} 32. Ke2 {[%clk 0:01:05.1]} 32... Ba3 {[%clk 0:00:13.6]}
33. Bd3 {[%clk 0:00:56.2]} 33... Bxd3+ {[%clk 0:00:11.9]} 34. Kxd3 {[%clk
0:00:56]} 34... f6 {[%clk 0:00:12.8]} 35. Kc4 {[%clk 0:00:43.4]} 35... Kf7
{[%clk 0:00:11.8]} 36. Bd6 {[%clk 0:00:41.7]} 36... Ke6 {[%clk 0:00:11.5]} 37.
Bf4 {[%clk 0:00:38.9]} 37... Bb4 {[%clk 0:00:11]} 38. Bc1 {[%clk 0:00:34.6]}
38... h5 {[%clk 0:00:09.9]} 39. f3 {[%clk 0:00:33.5]} 39... Be1 {[%clk
0:00:08.3]} 40. Bb2 {[%clk 0:00:22.3]} 40... g5 {[%clk 0:00:08.1]} 41. a3 {[%clk
0:00:20.7]} 41... Bf2 {[%clk 0:00:05.4]} 42. Bc3 {[%clk 0:00:20.2]} 42... Kf5
{[%clk 0:00:03.5]} 43. Bxa5 {[%clk 0:00:19.3]} 43... g4 {[%clk 0:00:04.4]} 44.
fxg4+ {[%clk 0:00:17.8]} 44... hxg4 {[%clk 0:00:05.3]} 45. hxg4+ {[%clk
0:00:18.2]} 45... Kxg4 {[%clk 0:00:06.2]} 46. Bc7 {[%clk 0:00:18.2]} 46... f5
{[%clk 0:00:05.8]} 47. a4 {[%clk 0:00:17.7]} 47... Bg3 {[%clk 0:00:06.2]} 48.
Bxg3 {[%clk 0:00:12.6]} 48... Kxg3 {[%clk 0:00:07.1]} 49. a5 {[%clk 0:00:13.1]}
49... Kxg2 {[%clk 0:00:07.9]} 50. a6 {[%clk 0:00:13.5]} 50... f4 {[%clk
0:00:08.8]} 51. a7 {[%clk 0:00:14]} 51... f3 {[%clk 0:00:09.7]} 52. a8=Q {[%clk
0:00:14.3]} 52... f2 {[%clk 0:00:10.6]} 53. Qxc6+ {[%clk 0:00:14.1]} 53... Kg1
{[%clk 0:00:11.5]} 54. Qg6+ {[%clk 0:00:14]} 54... Kh1 {[%clk 0:00:11.7]} 55.
Qh5+ {[%clk 0:00:13.9]} 55... Kg2 {[%clk 0:00:11.6]} 56. Qg4+ {[%clk 0:00:14]}
56... Kh1 {[%clk 0:00:12]} 57. Qf3+ {[%clk 0:00:13.9]} 57... Kg1 {[%clk
0:00:12.1]} 58. b4 {[%clk 0:00:13.9]} 58... Kh2 {[%clk 0:00:06.2]} 59. Qxf2+
{[%clk 0:00:13.9]} 59... Kh1 {[%clk 0:00:05.4]} 60. Qb2 {[%clk 0:00:14.8]} 1-0

[Event "*** Titled Tuesday Blitz"]
[Site "Chess.com"]
[Date "2020.05.19"]
[Round "8"]
[White "Angel_Hranitel_37"]
[Black "CakeinSpace2002"]
[Result "1-0"]
[WhiteElo "2358"]
[BlackElo "2216"]
[TimeControl "180+1"]
[EndTime "13:37:27 PDT"]
[Termination "Angel_Hranitel_37 won by resignation"]

1. d4 {[%clk 0:03:00.9]} 1... Nf6 {[%clk 0:02:58.2]} 2. Nf3 {[%clk 0:03:00.5]}
2... c5 {[%clk 0:02:56.3]} 3. d5 {[%clk 0:02:58.4]} 3... g6 {[%clk 0:02:55.3]}
4. c4 {[%clk 0:02:56.3]} 4... b5 {[%clk 0:02:54.6]} 5. Qc2 {[%clk 0:02:55.8]}
5... bxc4 {[%clk 0:02:53.8]} 6. e4 {[%clk 0:02:54.4]} 6... d6 {[%clk 0:02:54.2]}
7. Bxc4 {[%clk 0:02:54]} 7... Bg7 {[%clk 0:02:54.2]} 8. O-O {[%clk 0:02:54]}
8... O-O {[%clk 0:02:54.3]} 9. Nc3 {[%clk 0:02:49.2]} 9... Ba6 {[%clk
0:02:48.3]} 10. Nb5 {[%clk 0:02:48]} 10... Bxb5 {[%clk 0:02:43.2]} 11. Bxb5
{[%clk 0:02:48.9]} 11... Qa5 {[%clk 0:02:43.3]} 12. a4 {[%clk 0:02:45.4]} 12...
Na6 {[%clk 0:02:41.4]} 13. Bd2 {[%clk 0:02:43.5]} 13... Nb4 {[%clk 0:02:41]} 14.
Qc4 {[%clk 0:02:42.3]} 14... a6 {[%clk 0:02:25.7]} 15. Bc6 {[%clk 0:02:41.5]}
15... Rab8 {[%clk 0:02:25.3]} 16. e5 {[%clk 0:02:41.7]} 16... Ne8 {[%clk
0:02:11.3]} 17. Qh4 {[%clk 0:02:14.1]} 17... Qc7 {[%clk 0:01:47.5]} 18. Ng5
{[%clk 0:02:01.6]} 18... h6 {[%clk 0:01:45.4]} 19. Ne4 {[%clk 0:02:01.6]} 19...
Nxc6 {[%clk 0:01:39.4]} 20. dxc6 {[%clk 0:01:49.4]} 20... Qxc6 {[%clk
0:01:38.8]} 21. Rfe1 {[%clk 0:01:44.2]} 21... d5 {[%clk 0:01:20.2]} 22. Nc3
{[%clk 0:00:26.3]} 22... g5 {[%clk 0:01:13.4]} 23. Qh5 {[%clk 0:00:20]} 23...
Rxb2 {[%clk 0:01:11.5]} 24. Rad1 {[%clk 0:00:10.3]} 24... c4 {[%clk 0:00:48.3]}
25. Bc1 {[%clk 0:00:10.1]} 25... Rb3 {[%clk 0:00:46.8]} 26. Nxd5 {[%clk
0:00:08.7]} 26... Qe6 {[%clk 0:00:42.7]} 27. f4 {[%clk 0:00:07.6]} 27... gxf4
{[%clk 0:00:36.4]} 28. Nxf4 {[%clk 0:00:07.6]} 28... Qb6+ {[%clk 0:00:35.6]} 29.
Kh1 {[%clk 0:00:07.5]} 29... c3 {[%clk 0:00:23.4]} 30. Nd5 {[%clk 0:00:07.5]}
30... Qe6 {[%clk 0:00:22.8]} 31. Nf4 {[%clk 0:00:07.9]} 31... Qc4 {[%clk
0:00:20.3]} 32. Rf1 {[%clk 0:00:04.3]} 32... c2 {[%clk 0:00:19.8]} 33. Rde1
{[%clk 0:00:04.8]} 33... Rb6 {[%clk 0:00:18.4]} 34. e6 {[%clk 0:00:04.8]} 34...
Rxe6 {[%clk 0:00:12.8]} 35. Nxe6 {[%clk 0:00:04.5]} 35... fxe6 {[%clk
0:00:12.7]} 36. Rxf8+ {[%clk 0:00:05.1]} 36... Bxf8 {[%clk 0:00:12.3]} 37. Qxe8
{[%clk 0:00:04.6]} 37... Qd3 {[%clk 0:00:10.4]} 38. Rg1 {[%clk 0:00:04.4]} 38...
Qd1 {[%clk 0:00:09.8]} 39. Qg6+ {[%clk 0:00:04.2]} 39... Kh8 {[%clk 0:00:09.4]}
40. Qf7 {[%clk 0:00:03.7]} 40... Bg7 {[%clk 0:00:08.4]} 41. Qf3 {[%clk
0:00:04.1]} 41... Qxf3 {[%clk 0:00:07.5]} 42. gxf3 {[%clk 0:00:05]} 42... Bd4
{[%clk 0:00:05.7]} 43. Rf1 {[%clk 0:00:05.4]} 43... Kg7 {[%clk 0:00:05.2]} 44.
Kg2 {[%clk 0:00:05.2]} 44... Kf6 {[%clk 0:00:05.6]} 45. f4 {[%clk 0:00:05.4]}
45... Kf5 {[%clk 0:00:05.7]} 46. Kf3 {[%clk 0:00:05.8]} 46... a5 {[%clk
0:00:06]} 47. Re1 {[%clk 0:00:05.3]} 47... h5 {[%clk 0:00:05.7]} 48. Re2 {[%clk
0:00:05.4]} 48... h4 {[%clk 0:00:05.7]} 49. Rxc2 {[%clk 0:00:06.3]} 1-0

[Event "*** Titled Tuesday Blitz"]
[Site "Chess.com"]
[Date "2020.05.19"]
[Round "8"]
[White "aaronmaster123"]
[Black "14Sokol88"]
[Result "1-0"]
[WhiteElo "2273"]
[BlackElo "2401"]
[TimeControl "180+1"]
[EndTime "13:37:28 PDT"]
[Termination "aaronmaster123 won on time"]

1. Nf3 {[%clk 0:02:35.5]} 1... g6 {[%clk 0:02:47.7]} 2. d4 {[%clk 0:02:33.9]}
2... Bg7 {[%clk 0:02:46.5]} 3. c4 {[%clk 0:02:34.5]} 3... d6 {[%clk 0:02:45]} 4.
g3 {[%clk 0:02:34.7]} 4... Nf6 {[%clk 0:02:43.7]} 5. Bg2 {[%clk 0:02:35.3]} 5...
O-O {[%clk 0:02:43.5]} 6. O-O {[%clk 0:02:35.8]} 6... Nbd7 {[%clk 0:02:40.5]} 7.
Qc2 {[%clk 0:02:35.4]} 7... e5 {[%clk 0:02:38]} 8. Rd1 {[%clk 0:02:36]} 8... Re8
{[%clk 0:02:32.6]} 9. Nc3 {[%clk 0:02:34.9]} 9... a6 {[%clk 0:02:27.8]} 10. b4
{[%clk 0:02:26.1]} 10... e4 {[%clk 0:01:57.9]} 11. Ng5 {[%clk 0:02:24.4]} 11...
e3 {[%clk 0:01:47.7]} 12. Bxe3 {[%clk 0:02:23]} 12... Rxe3 {[%clk 0:01:47]} 13.
fxe3 {[%clk 0:02:23.9]} 13... Ng4 {[%clk 0:01:47.1]} 14. Nf3 {[%clk 0:02:07.1]}
14... Nxe3 {[%clk 0:01:46.4]} 15. Qd3 {[%clk 0:02:03.5]} 15... Nxd1 {[%clk
0:01:44.1]} 16. Rxd1 {[%clk 0:02:02.8]} 16... Nf8 {[%clk 0:01:11.4]} 17. e3
{[%clk 0:01:55.8]} 17... Bf5 {[%clk 0:01:07.7]} 18. e4 {[%clk 0:01:52.6]} 18...
Bg4 {[%clk 0:01:06.8]} 19. h3 {[%clk 0:01:50.7]} 19... Bxf3 {[%clk 0:01:06]} 20.
Bxf3 {[%clk 0:01:47]} 20... Ne6 {[%clk 0:01:04.6]} 21. Ne2 {[%clk 0:01:43.9]}
21... c5 {[%clk 0:00:58.3]} 22. dxc5 {[%clk 0:01:40.6]} 22... dxc5 {[%clk
0:00:58.5]} 23. Qxd8+ {[%clk 0:01:37.6]} 23... Rxd8 {[%clk 0:00:58.7]} 24. Rxd8+
{[%clk 0:01:35.7]} 24... Nxd8 {[%clk 0:00:59]} 25. bxc5 {[%clk 0:01:35.3]} 25...
Ne6 {[%clk 0:00:58.5]} 26. c6 {[%clk 0:01:12.1]} 26... bxc6 {[%clk 0:00:59.4]}
27. Kf2 {[%clk 0:01:10.5]} 27... Bd4+ {[%clk 0:00:47.9]} 28. Ke1 {[%clk
0:01:05.1]} 28... c5 {[%clk 0:00:44]} 29. Nf4 {[%clk 0:01:02.6]} 29... Nd8
{[%clk 0:00:38.3]} 30. Kd2 {[%clk 0:00:55.6]} 30... Nc6 {[%clk 0:00:36.9]} 31.
a4 {[%clk 0:00:40.5]} 31... Kg7 {[%clk 0:00:35.1]} 32. Nd3 {[%clk 0:00:35.4]}
32... Kf6 {[%clk 0:00:27.2]} 33. Bg4 {[%clk 0:00:34.9]} 33... Ke7 {[%clk
0:00:23.6]} 34. Bc8 {[%clk 0:00:34.1]} 34... a5 {[%clk 0:00:22.2]} 35. Bb7
{[%clk 0:00:34.2]} 35... Nb8 {[%clk 0:00:15.2]} 36. Nf4 {[%clk 0:00:29.4]} 36...
Kd6 {[%clk 0:00:14]} 37. Bd5 {[%clk 0:00:28.3]} 37... f6 {[%clk 0:00:11.8]} 38.
Bg8 {[%clk 0:00:27.4]} 38... g5 {[%clk 0:00:10.7]} 39. Nd3 {[%clk 0:00:20.8]}
39... h6 {[%clk 0:00:10.5]} 40. Bd5 {[%clk 0:00:16.3]} 40... Nd7 {[%clk
0:00:09.1]} 41. g4 {[%clk 0:00:14.7]} 41... Nf8 {[%clk 0:00:06.9]} 42. Ne1
{[%clk 0:00:12.8]} 42... Ng6 {[%clk 0:00:05.9]} 43. Ng2 {[%clk 0:00:11.8]} 43...
Ke5 {[%clk 0:00:03.9]} 44. Ke2 {[%clk 0:00:10.4]} 44... Ne7 {[%clk 0:00:03.9]}
45. Kf3 {[%clk 0:00:09.8]} 45... Nc8 {[%clk 0:00:03.7]} 46. h4 {[%clk
0:00:09.3]} 46... Nb6 {[%clk 0:00:03.8]} 47. Ne1 {[%clk 0:00:04.4]} 47... Nxc4
{[%clk 0:00:03.5]} 48. Nd3+ {[%clk 0:00:04.5]} 48... Kd6 {[%clk 0:00:03.8]} 49.
Bxc4 {[%clk 0:00:04.9]} 49... Bc3 {[%clk 0:00:01.7]} 50. h5 {[%clk 0:00:04.3]}
50... Ba1 {[%clk 0:00:02.1]} 51. e5+ {[%clk 0:00:04.5]} 51... fxe5 {[%clk
0:00:01.7]} 52. Ke4 {[%clk 0:00:04.8]} 52... Bc3 {[%clk 0:00:01.9]} 53. Kf5
{[%clk 0:00:05]} 53... Kc6 {[%clk 0:00:02]} 54. Nf2 {[%clk 0:00:04.8]} 54... Kd6
{[%clk 0:00:02.3]} 55. Ne4+ {[%clk 0:00:05.7]} 55... Kc6 {[%clk 0:00:01.3]} 56.
Kg6 {[%clk 0:00:06.6]} 1-0